bitfinex/quotes_BTCUSD_20250515
["timestamp","ask_amount","ask_price","bid_price","bid_amount"]
[1747312792192,0.00973548,102710.0,102700.0,0.13079507]
[1747312792402,0.01947115,102710.0,102700.0,0.11805836]
[1747312792605,0.00973548,102710.0,102700.0,0.12105836]
[1747312793487,0.0292073,102710.0,102700.0,0.09184765]
[1747312793918,0.01947125,102710.0,102700.0,0.09184765]
[1747312794335,0.80408631,102730.0,102710.0,0.0635]
[1747312794512,0.0973094,102720.0,102710.0,0.0635]
[1747312794714,0.09816786,102720.0,102710.0,0.07278477]
[1747312795485,0.09816786,102720.0,102710.0,0.07478477]
[1747312795888,0.09816786,102720.0,102710.0,0.07378477]
[1747312796762,0.09816786,102720.0,102710.0,0.07478477]
[1747312798019,0.09816786,102720.0,102710.0,0.0655]
[1747312798234,0.0973094,102720.0,102710.0,0.0655]
[1747312798459,0.09816786,102720.0,102710.0,0.0655]
[1747312798673,0.11677932,102720.0,102710.0,0.0655]
[1747312798908,0.12651395,102720.0,102710.0,0.0655]
[1747312799128,0.12651395,102720.0,102710.0,0.07702016]
[1747312800236,0.11677932,102720.0,102710.0,0.07702016]
[1747312801044,0.11677932,102720.0,102710.0,0.0655]
[1747312801263,0.10790287,102720.0,102710.0,0.0655]
[1747312801485,0.10790287,102720.0,102710.0,0.002]
[1747312801486,0.38578918,102720.0,102710.0,0.002]
[1747312801674,0.38493072,102720.0,102710.0,0.002]
[1747312802088,0.10704441,102720.0,102710.0,0.0321]
[1747312802290,0.38578918,102720.0,102710.0,0.001]
[1747312802530,0.00973596,102710.0,102700.0,0.06322233]
[1747312802762,0.00973596,102710.0,102700.0,0.10451835]
[1747312802763,0.02033028,102710.0,102700.0,0.10451835]
[1747312803616,0.01947182,102710.0,102700.0,0.10451835]
[1747312804053,0.02920797,102710.0,102700.0,0.10551835]
[1747312804686,0.01947211,102710.0,102700.0,0.06422233]
[1747312805270,0.01947211,102710.0,102700.0,0.06522233]
[1747312805524,0.01947163,102710.0,102700.0,0.06522233]
[1747312806181,0.01947106,102710.0,102700.0,0.06522233]
[1747312806390,0.02920702,102710.0,102700.0,0.06522233]
[1747312806632,0.02920702,102710.0,102700.0,0.10866582]
[1747312806843,0.03006548,102710.0,102700.0,0.10866582]
[1747312807925,0.02033009,102710.0,102700.0,0.10866582]
[1747312808877,0.01947163,102710.0,102700.0,0.10866582]
[1747312809118,0.03894288,102710.0,102700.0,0.10866582]
[1747312809433,0.38045932,102720.0,102710.0,0.0611]
[1747312809605,0.11677932,102720.0,102710.0,0.07375395]
[1747312810786,0.01947182,102710.0,102700.0,0.10896582]
[1747312811014,0.01947182,102710.0,102700.0,0.06552233]
[1747312811714,0.01932072,102710.0,102700.0,0.06452233]
[1747312811902,0.02017918,102710.0,102700.0,0.06452233]
[1747312812505,0.39537489,102710.0,102700.0,0.06552233]
[1747312812710,0.39451643,102710.0,102700.0,0.10707456]
[1747312812921,0.39451643,102710.0,102700.0,0.00252233]
[1747312813352,0.11663012,102710.0,102700.0,0.00252233]
[1747312813552,0.11748858,102710.0,102700.0,0.00252233]
[1747312813758,0.11748858,102710.0,102700.0,0.00152233]
[1747312814554,0.11748858,102710.0,102700.0,0.00252233]
[1747312814762,0.39537489,102710.0,102700.0,0.00252233]
[1747312814970,0.42511643,102710.0,102700.0,0.00152233]
[1747312815163,0.39451643,102710.0,102700.0,0.00152233]
[1747312815372,0.54794007,102710.0,102700.0,0.00052233]
[1747312815792,0.45731643,102710.0,102700.0,0.00052233]
[1747312816248,0.45741643,102710.0,102700.0,0.00052233]
[1747312818762,0.79741643,102710.0,102700.0,0.00052233]
[1747312819537,0.74741643,102710.0,102700.0,0.00052233]
[1747312819750,0.75715239,102710.0,102700.0,0.00052233]
[1747312819881,0.85446179,102710.0,102700.0,0.00052233]
[1747312821004,0.75715239,102710.0,102700.0,0.00052233]
[1747312821159,0.47926608,102710.0,102700.0,0.00052233]
[1747312821366,0.75701329,102710.0,102700.0,0.00052233]
[1747312823466,0.95619329,102710.0,102700.0,0.00052233]
[1747312823677,0.68804313,102710.0,102700.0,0.00052233]
[1747312823879,0.68804313,102710.0,102700.0,0.03082233]
[1747312824505,0.96592944,102710.0,102700.0,0.03082233]
[1747312825308,0.96592944,102710.0,102700.0,0.00052233]
[1747312825901,1.06323884,102710.0,102700.0,0.00052233]
[1747312826296,1.12633884,102710.0,102700.0,0.00052233]
[1747312826928,0.68804313,102710.0,102700.0,0.06612233]
[1747312827406,0.42696313,102710.0,102700.0,0.06612233]
[1747312827584,0.68804313,102710.0,102700.0,0.06612233]
[1747312837321,0.08696313,102710.0,102700.0,0.06612233]
[1747312839626,0.08782159,102710.0,102700.0,0.06612233]
[1747312840259,0.3657079,102710.0,102700.0,0.06612233]
[1747312840465,0.36484944,102710.0,102700.0,0.06612233]
[1747312840665,0.08696313,102710.0,102700.0,0.07273456]
[1747312840879,0.08782159,102710.0,102700.0,0.07273456]
[1747312842305,0.08782159,102710.0,102700.0,0.06612233]
[1747312842721,0.08696313,102710.0,102700.0,0.06612233]
[1747312845092,0.02047211,102710.0,102700.0,0.06612233]
[1747312845314,0.03020778,102710.0,102700.0,0.06612233]
[1747312845525,0.02047211,102710.0,102700.0,0.06612233]
[1747312845756,0.01159461,102710.0,102700.0,0.06612233]
[1747312845950,0.01159461,102710.0,102700.0,0.07370836]
[1747312846989,0.10890401,102710.0,102700.0,0.07370836]
[1747312847408,0.38679032,102710.0,102700.0,0.03312233]
[1747312847615,0.38593186,102710.0,102700.0,0.00052233]
[1747312847819,0.38593186,102710.0,102700.0,0.03362233]
[1747312848454,0.10804555,102710.0,102700.0,0.03362233]
[1747312848666,0.10890401,102710.0,102700.0,0.03362233]
[1747312849453,0.10890401,102710.0,102700.0,0.06662233]
[1747312849663,0.10890401,102710.0,102700.0,0.07328456]
[1747312851036,0.02047077,102710.0,102700.0,0.07328456]
[1747312851242,0.03020711,102710.0,102700.0,0.07328456]
[1747312851460,0.02047163,102710.0,102700.0,0.07328456]
[1747312853156,0.02047163,102710.0,102700.0,0.10729931]
[1747312853157,0.02047087,102710.0,102700.0,0.10729931]
[1747312853374,0.03020635,102710.0,102700.0,0.10729931]
[1747312853616,0.03994221,102710.0,102700.0,0.11703602]
[1747312854561,0.03994221,102710.0,102700.0,0.0975625]
[1747312854765,0.04967826,102710.0,102700.0,0.1072995]
[1747312855097,0.04967826,102710.0,102700.0,0.1180364]
[1747312855302,0.03894221,102710.0,102700.0,0.1180364]
[1747312855505,0.03894221,102710.0,102700.0,0.1170364]
[1747312855753,0.03894221,102710.0,102700.0,0.1092995]
[1747312855951,0.04867836,102710.0,102700.0,0.08982541]
[1747312856152,0.01947201,102710.0,102700.0,0.06862233]
[1747312857381,0.02033047,102710.0,102700.0,0.06862233]
[1747312858582,0.39466772,102710.0,102700.0,0.00252233]
[1747312859015,0.11678141,102710.0,102700.0,0.00252233]
[1747312859241,0.11763987,102710.0,102700.0,0.00252233]
[1747312859420,0.39552618,102710.0,102700.0,0.00052233]
[1747312859626,0.42696772,102710.0,102700.0,0.00052233]
[1747312859835,0.42696772,102710.0,102700.0,0.00152233]
[1747312860045,0.46016772,102710.0,102700.0,0.00052233]
[1747312860251,0.46016772,102710.0,102700.0,0.00152233]
[1747312860395,0.46116772,102710.0,102700.0,0.00152233]
[1747312861254,0.80116772,102710.0,102700.0,0.00152233]
[1747312861458,0.80116772,102710.0,102700.0,0.00052233]
[1747312861459,0.89847712,102710.0,102700.0,0.00052233]
[1747312863746,0.90847712,102710.0,102700.0,0.00052233]
[1747312863959,0.01947732,102680.0,102670.0,4e-05]
[1747312864178,1.05491303,102680.0,102670.0,0.00018419]
[1747312865466,1.13576152,102680.0,102670.0,0.00018419]
[1747312866105,1.13576152,102680.0,102670.0,0.00118419]
[1747312866334,1.05491303,102680.0,102670.0,0.00118419]
[1747312866971,1.05491303,102680.0,102670.0,0.00218419]
[1747312867205,0.74656672,102680.0,102670.0,0.00218419]
[1747312867433,0.11678672,102680.0,102670.0,0.00218419]
[1747312867627,0.37616518,102680.0,102670.0,0.00218419]
[1747312867840,0.37530672,102680.0,102670.0,0.03248419]
[1747312868050,0.37530672,102680.0,102670.0,0.06418419]
[1747312868269,0.37530672,102680.0,102670.0,0.07255077]
[1747312868481,0.57008661,102680.0,102670.0,0.07255077]
[1747312868714,0.56034809,102680.0,102670.0,0.06418419]
[1747312868933,0.56134809,102680.0,102670.0,0.06318419]
[1747312869145,0.30482809,102680.0,102670.0,0.06318419]
[1747312872191,0.5827144,102680.0,102670.0,0.00018419]
[1747312872700,0.6445144,102680.0,102670.0,0.00018419]
[1747312872905,0.7418238,102680.0,102670.0,0.00018419]
[1747312873338,1.0818238,102680.0,102670.0,0.00018419]
[1747312873775,0.80393749,102680.0,102670.0,0.00018419]
[1747312874200,0.9227144,102680.0,102670.0,0.00018419]
[1747312874416,0.64482809,102680.0,102670.0,0.00018419]
[1747312875918,0.9227144,102680.0,102670.0,0.00018419]
[1747312878311,0.64482809,102680.0,102670.0,0.00018419]
[1747312878536,0.9227144,102680.0,102670.0,0.00018419]
[1747312879486,1.0200238,102680.0,102670.0,0.00018419]
[1747312880163,0.9227144,102680.0,102670.0,0.00018419]
[1747312880427,0.9227144,102680.0,102670.0,0.03308419]
[1747312880678,0.30482809,102680.0,102670.0,0.06448419]
[1747312880958,0.33404365,102680.0,102670.0,0.269023]
[1747312881187,0.33404422,102680.0,102670.0,0.07422413]
[1747312881411,0.21725654,102680.0,102670.0,0.33732842]
[1747312881631,0.20751812,102680.0,102670.0,0.36160854]
[1747312881849,0.21525654,102680.0,102670.0,0.37134791]
[1747312882057,0.21525645,102680.0,102670.0,0.37134791]
[1747312882263,0.21425645,102680.0,102670.0,0.37134791]
[1747312882496,0.22399506,102680.0,102670.0,0.35186927]
[1747312882682,0.23373396,102680.0,102670.0,0.36160911]
[1747312882822,0.23373386,102680.0,102670.0,0.36160911]
[1747312883036,0.23373386,102680.0,102670.0,0.36360911]
[1747312883684,0.23373386,102680.0,102670.0,0.36460911]
[1747312884278,0.22399506,102680.0,102670.0,0.37434857]
[1747312884469,0.22399506,102680.0,102670.0,0.36460911]
[1747312884679,0.23373396,102680.0,102670.0,0.33538987]
[1747312884912,0.2142574,102680.0,102670.0,0.08202504]
[1747312885134,0.2142574,102680.0,102670.0,0.06748419]
[1747312885135,0.3115668,102680.0,102670.0,0.06748419]
[1747312885735,0.3115668,102680.0,102670.0,0.03608419]
[1747312886187,0.3115668,102680.0,102670.0,0.06718419]
[1747312887027,0.30182819,102680.0,102670.0,0.06718419]
[1747312887232,0.2142573,102680.0,102670.0,0.322334]
[1747312887440,0.22399563,102680.0,102670.0,0.11584739]
[1747312887681,0.20451822,102680.0,102670.0,0.34181281]
[1747312887894,0.22399525,102680.0,102670.0,0.33012566]
[1747312888130,0.23373405,102680.0,102670.0,0.33986512]
[1747312888339,0.21425654,102680.0,102670.0,0.35170439]
[1747312888554,0.22399515,102680.0,102670.0,0.34196512]
[1747312888801,0.19477438,102700.0,102680.0,0.01454085]
[1747312889090,0.2239304,102710.0,102700.0,0.07353709]
[1747312889328,0.2239304,102710.0,102700.0,0.07834085]
[1747312889548,0.21419482,102710.0,102700.0,0.2828199]
[1747312889758,0.21419482,102710.0,102700.0,0.07834085]
[1747312889988,0.21419482,102710.0,102700.0,0.32181456]
[1747312890449,0.21419482,102710.0,102700.0,0.1173356]
[1747312890668,0.21419482,102710.0,102700.0,0.1270726]
[1747312890875,0.21419482,102710.0,102700.0,0.32181456]
[1747312891083,0.21419482,102710.0,102700.0,0.31207756]
[1747312891524,0.21419482,102710.0,102700.0,0.1173356]
[1747312892162,0.21419482,102710.0,102700.0,0.1183356]
[1747312892366,0.20445905,102710.0,102700.0,0.27034085]
[1747312892796,0.57965476,102710.0,102700.0,0.192]
[1747312893014,0.30176845,102710.0,102700.0,0.192]
[1747312894074,0.57965476,102710.0,102700.0,0.192]
[1747312894289,0.64345476,102710.0,102700.0,0.002]
[1747312894507,0.74076416,102710.0,102700.0,0.002]
[1747312894710,0.74076416,102710.0,102700.0,0.001]
[1747312894925,0.21423635,102690.0,102680.0,0.0644]
[1747312895387,0.22399564,102680.0,102670.0,0.36446498]
[1747312895601,0.2142575,102680.0,102670.0,0.41822504]
[1747312895805,0.2142575,102680.0,102670.0,0.46693647]
[1747312896017,0.20451879,102680.0,102670.0,0.06368419]
[1747312897068,0.5699756,102680.0,102670.0,0.00018419]
[1747312897276,0.5699756,102680.0,102670.0,0.06018419]
[1747312897487,0.58001551,102680.0,102670.0,0.06018419]
[1747312897701,0.58001551,102680.0,102670.0,0.06118419]
[1747312897954,0.58001551,102680.0,102670.0,0.06218419]
[1747312898316,0.3021292,102680.0,102670.0,0.06218419]
[1747312899394,0.3021292,102680.0,102670.0,0.00218419]
[1747312899621,0.58001551,102680.0,102670.0,0.00218419]
[1747312900029,0.660864,102680.0,102670.0,0.00218419]
[1747312900338,0.690864,102680.0,102670.0,0.00218419]
[1747312902520,0.61001551,102680.0,102670.0,0.00218419]
[1747312904319,0.64111551,102680.0,102670.0,0.00218419]
[1747312905986,0.61111551,102680.0,102670.0,0.00218419]
[1747312906363,0.8085292,102680.0,102670.0,0.00218419]
[1747312906775,0.5554892,102680.0,102670.0,0.03248419]
[1747312907376,0.5554892,102680.0,102670.0,0.00218419]
[1747312908040,0.6527986,102680.0,102670.0,0.00218419]
[1747312908376,0.93068491,102680.0,102670.0,0.00218419]
[1747312908778,0.83337551,102680.0,102670.0,0.00218419]
[1747312908978,1.17337551,102680.0,102670.0,0.00218419]
[1747312909187,1.23597551,102680.0,102670.0,0.00218419]
[1747312910668,0.98261551,102680.0,102670.0,0.00218419]
[1747312910884,1.48873551,102680.0,102670.0,0.00218419]
[1747312911089,1.58604491,102680.0,102670.0,0.00218419]
[1747312911303,1.48873551,102680.0,102670.0,0.00218419]
[1747312916832,1.90941551,102680.0,102670.0,0.00218419]
[1747312917277,2.19730182,102680.0,102670.0,0.00218419]
[1747312917525,2.20730182,102680.0,102670.0,0.00218419]
[1747312918170,2.19726191,102680.0,102670.0,0.00218419]
[1747312918521,2.29457131,102680.0,102670.0,0.00118419]
[1747312918690,0.20461833,102630.0,102620.0,0.0614]
[1747312918945,0.45805833,102630.0,102620.0,0.0614]
[1747312919372,0.55536773,102630.0,102620.0,0.0614]
[1747312920436,0.55536773,102630.0,102620.0,0.0634]
[1747312921057,0.55536773,102630.0,102620.0,0.0664]
[1747312921916,0.30192773,102630.0,102620.0,0.0664]
[1747312922130,0.81699118,102630.0,102620.0,0.09352024]
[1747312922366,0.31167118,102630.0,102620.0,0.09352024]
[1747312922572,0.56511118,102630.0,102620.0,0.09352024]
[1747312922778,0.56511118,102630.0,102620.0,0.0664]
[1747312923435,0.55536773,102630.0,102620.0,0.0664]
[1747312923654,0.32141388,102630.0,102620.0,0.28078257]
[1747312923868,0.47754448,102630.0,102620.0,0.29052659]
[1747312924072,0.48728821,102630.0,102620.0,0.3215456]
[1747312924285,0.48728821,102630.0,102620.0,0.27103827]
[1747312924615,0.48728821,102630.0,102620.0,0.27103837]
[1747312924819,0.48728821,102630.0,102620.0,0.28078286]
[1747312925225,0.47754448,102630.0,102620.0,0.29052726]
[1747312925433,0.48728802,102630.0,102620.0,0.29052726]
[1747312925642,0.46784103,102630.0,102620.0,0.34980436]
[1747312925820,0.48732802,102630.0,102620.0,0.34980436]
[1747312926059,0.48732877,102630.0,102620.0,0.27103837]
[1747312927095,0.48732877,102630.0,102620.0,0.28078286]
[1747312927736,0.47758504,102630.0,102620.0,0.29052726]
[1747312927912,0.47758494,102630.0,102620.0,0.28078286]
[1747312928119,0.47758494,102630.0,102620.0,0.27103837]
[1747312928120,0.48732867,102630.0,102620.0,0.27103837]
[1747312928710,0.47758541,102630.0,102620.0,0.0664]
[1747312928914,0.46784206,102630.0,102620.0,0.27103846]
[1747312929085,0.46784206,102630.0,102620.0,0.28078305]
[1747312929281,0.46784206,102630.0,102620.0,0.0664]
[1747312929282,0.56515146,102630.0,102620.0,0.0664]
[1747312930508,0.46784206,102630.0,102620.0,0.27103827]
[1747312930920,0.21436206,102630.0,102620.0,0.27103827]
[1747312931121,0.46784206,102630.0,102620.0,0.27103827]
[1747312931325,0.48732812,102630.0,102620.0,0.29052659]
[1747312931522,0.19485133,102660.0,102650.0,0.00974184]
[1747312931870,0.01948235,102650.0,102640.0,0.2558658]
[1747312932084,0.61169,102660.0,102650.0,0.24611983]
[1747312932282,0.2337794,102660.0,102650.0,0.27641993]
[1747312932410,0.86672474,102670.0,102660.0,0.20455863]
[1747312932613,0.72265398,102670.0,102660.0,0.0625]
[1747312933195,0.20455873,102660.0,102650.0,0.11315802]
[1747312933327,0.21429933,102660.0,102650.0,0.06408376]
[1747312933873,0.21429933,102660.0,102650.0,0.0738256]
[1747312934082,0.21429933,102660.0,102650.0,0.27840416]
[1747312934461,0.21429933,102660.0,102650.0,0.28914581]
[1747312934881,0.5181094,102670.0,102660.0,0.21429895]
[1747312935085,0.44027845,102670.0,102660.0,0.34803022]
[1747312935285,0.44027845,102670.0,102660.0,0.34803041]
[1747312935286,0.24349647,102670.0,102660.0,0.34803041]
[1747312935526,0.23375653,102670.0,102660.0,0.33829]
[1747312935809,0.233757,102670.0,102660.0,0.32854949]
[1747312936023,0.02147864,102670.0,102660.0,0.29818006]
[1747312936247,0.002,102670.0,102660.0,0.31272091]
[1747312936456,0.02147864,102670.0,102660.0,0.31272091]
[1747312936653,0.03121829,102670.0,102660.0,0.31272091]
[1747312936867,0.22401716,102670.0,102660.0,0.36449918]
[1747312937088,0.23475691,102670.0,102660.0,0.36449918]
[1747312937296,0.23575691,102670.0,102660.0,0.36449918]
[1747312937518,0.22501716,102670.0,102660.0,0.36449918]
[1747312938751,0.23475691,102670.0,102660.0,0.36449918]
[1747312938967,0.001,102670.0,102660.0,0.36449918]
[1747312939164,0.001,102670.0,102660.0,0.4762188]
[1747312940317,0.02921546,102680.0,102670.0,0.23855839]
[1747312940537,0.22399535,102680.0,102670.0,0.36454792]
[1747312941169,0.46527745,102690.0,102680.0,0.28599592]
[1747312941170,0.47501502,102690.0,102680.0,0.28599592]
[1747312941345,0.47501502,102690.0,102680.0,0.062]
[1747312941560,1.13650403,102700.0,102690.0,0.26649897]
[1747312941778,1.13650441,102700.0,102690.0,0.062]
[1747312941919,1.13650441,102700.0,102690.0,0.08962574]
[1747312942331,0.21430441,102700.0,102690.0,0.28438667]
[1747312942689,0.21430432,102700.0,102690.0,0.08962574]
[1747312942831,0.21430432,102700.0,102690.0,0.0901095]
[1747312943515,0.20756751,102700.0,102690.0,0.0901095]
[1747312944144,0.21056751,102700.0,102690.0,0.0901095]
[1747312944627,0.30787691,102700.0,102690.0,0.00048376]
[1747312945269,0.58576322,102700.0,102690.0,0.00048376]
[1747312945469,0.64736322,102700.0,102690.0,0.00048376]
[1747312945665,0.36947691,102700.0,102690.0,0.00048376]
[1747312945967,0.30787691,102700.0,102690.0,0.00048376]
[1747312946972,0.58576322,102700.0,102690.0,0.00048376]
[1747312947186,0.73252458,102700.0,102690.0,0.00048376]
[1747312948883,1.23328458,102700.0,102690.0,0.00048376]
[1747312950176,1.11820322,102700.0,102690.0,0.00048376]
[1747312950393,0.30787691,102700.0,102690.0,0.19524469]
[1747312950598,0.80847691,102700.0,102690.0,0.20498273]
[1747312950796,0.80847691,102700.0,102690.0,0.06188376]
[1747312950934,0.80847691,102700.0,102690.0,0.03058376]
[1747312951141,0.80847691,102700.0,102690.0,0.00048376]
[1747312952396,1.08636322,102700.0,102690.0,0.00048376]
[1747312953453,1.24877262,102700.0,102690.0,0.00048376]
[1747312953645,0.74817262,102700.0,102690.0,0.00048376]
[1747312953853,1.24853262,102700.0,102690.0,0.00048376]
[1747312954415,1.58853262,102700.0,102690.0,0.00048376]
[1747312955919,1.64696262,102700.0,102690.0,0.00048376]
[1747312956329,1.49122322,102700.0,102690.0,0.00048376]
[1747312956757,0.89883691,102700.0,102690.0,0.00048376]
[1747312956965,0.64787691,102700.0,102690.0,0.00048376]
[1747312957153,1.14791691,102700.0,102690.0,0.00048376]
[1747312957359,1.42580322,102700.0,102690.0,0.00048376]
[1747312957561,1.58651262,102700.0,102690.0,0.00048376]
[1747312958527,1.30862631,102700.0,102690.0,0.00048376]
[1747312958724,1.42580322,102700.0,102690.0,0.00048376]
[1747312958931,0.89883691,102700.0,102690.0,0.00048376]
[1747312959103,0.30787691,102700.0,102690.0,0.26648264]
[1747312959439,0.30787691,102700.0,102690.0,0.06198376]
[1747312959644,0.30787691,102700.0,102690.0,0.03198376]
[1747312960053,0.30787691,102700.0,102690.0,0.06498376]
[1747312960282,0.30787691,102700.0,102690.0,0.26948273]
[1747312960483,0.30787691,102700.0,102690.0,0.06498376]
[1747312961201,0.2104782,102700.0,102690.0,0.30811804]
[1747312961407,0.03520938,102700.0,102690.0,0.31785551]
[1747312961602,0.006,102700.0,102690.0,0.34213374]
[1747312962166,0.22021557,102700.0,102690.0,0.06498376]
[1747312962370,0.21421557,102700.0,102690.0,0.06498376]
[1747312963159,0.58941128,102700.0,102690.0,0.00048376]
[1747312964681,0.65481128,102700.0,102690.0,0.00048376]
[1747312964892,0.99481128,102700.0,102690.0,0.00048376]
[1747312965136,1.09212068,102700.0,102690.0,0.00048376]
[1747312965567,1.09412068,102700.0,102690.0,0.00048376]
[1747312965847,0.65452497,102700.0,102690.0,0.00048376]
[1747312966062,0.32126178,102700.0,102690.0,0.06068376]
[1747312966256,0.32426178,102700.0,102690.0,0.06068376]
[1747312966465,0.32726178,102700.0,102690.0,0.06068376]
[1747312966838,0.59541157,102700.0,102690.0,0.00048376]
[1747312967479,0.69272097,102700.0,102690.0,0.00048376]
[1747312969321,0.72372097,102700.0,102690.0,0.00048376]
[1747312969456,0.75602097,102700.0,102690.0,0.00048376]
[1747312970108,0.72502097,102700.0,102690.0,0.00048376]
[1747312970308,0.69272097,102700.0,102690.0,0.00048376]
[1747312971519,0.31752526,102700.0,102690.0,0.06588376]
[1747312972127,0.31752526,102700.0,102690.0,0.26064469]
[1747312972311,0.31752526,102700.0,102690.0,0.06588376]
[1747312972516,0.3077876,102700.0,102690.0,0.26064469]
[1747312972709,0.3175245,102700.0,102690.0,0.27038273]
[1747312972908,0.3272614,102700.0,102690.0,0.31884659]
[1747312973105,0.3242614,102700.0,102690.0,0.32858454]
[1747312973806,0.3212614,102700.0,102690.0,0.32858454]
[1747312974100,0.3212614,102700.0,102690.0,0.34805958]
[1747312974101,0.001,102700.0,102690.0,0.34805958]
[1747312974240,0.01073633,102700.0,102690.0,0.34805958]
[1747312974439,0.02047285,102700.0,102690.0,0.34805958]
[1747312974645,0.02247285,102700.0,102690.0,0.34805958]
[1747312974847,0.003,102700.0,102690.0,0.36260043]
[1747312975048,0.00973624,102700.0,102690.0,0.36260043]
[1747312975268,0.21419629,102710.0,102700.0,0.27811586]
[1747312975473,0.22393244,102710.0,102700.0,0.0639]
[1747312975811,0.22393244,102710.0,102700.0,0.07363709]
[1747312976652,0.22493244,102710.0,102700.0,0.07363709]
[1747312976849,0.22493244,102710.0,102700.0,0.0639]
[1747312977011,0.21519686,102710.0,102700.0,0.0639]
[1747312977214,0.21719686,102710.0,102700.0,0.0639]
[1747312977439,0.20447896,102700.0,102690.0,0.03228376]
[1747312977647,0.57967467,102700.0,102690.0,0.03228376]
[1747312977870,0.57967467,102700.0,102690.0,0.00048376]
[1747312979132,0.30178836,102700.0,102690.0,0.00048376]
[1747312979437,0.30178836,102700.0,102690.0,0.06498376]
[1747312980003,0.29205136,102700.0,102690.0,0.06498376]
[1747312980816,0.64347929,102700.0,102690.0,0.00048376]
[1747312981343,0.70437929,102700.0,102690.0,0.00048376]
[1747312982851,0.70537929,102700.0,102690.0,0.00048376]
[1747312983046,0.70637929,102700.0,102690.0,0.00048376]
[1747312983579,0.70737929,102700.0,102690.0,0.00048376]
[1747312983813,0.67687929,102700.0,102690.0,0.00048376]
[1747312983943,0.67987929,102700.0,102690.0,0.00048376]
[1747312984140,0.29805136,102700.0,102690.0,0.00048376]
[1747312985116,0.63803767,102700.0,102690.0,0.00048376]
[1747312985329,0.97803767,102700.0,102690.0,0.00048376]
[1747312989395,1.02673767,102700.0,102690.0,0.00048376]
[1747312989599,1.30462398,102700.0,102690.0,0.00048376]
[1747312989755,1.40193338,102700.0,102690.0,0.00048376]
[1747312991607,1.41193338,102700.0,102690.0,0.00048376]
[1747312992002,1.12404707,102700.0,102690.0,0.00048376]
[1747312992372,1.37056707,102700.0,102690.0,0.00048376]
[1747312992756,1.36456707,102700.0,102690.0,0.00048376]
[1747312992957,1.52565767,102700.0,102690.0,0.00048376]
[1747312993582,1.51965767,102700.0,102690.0,0.00048376]
[1747312993784,1.51765767,102700.0,102690.0,0.00048376]
[1747312994366,1.51365767,102700.0,102690.0,0.00048376]
[1747312994596,1.51765767,102700.0,102690.0,0.00048376]
[1747312994971,1.61496707,102700.0,102690.0,0.00048376]
[1747312995620,1.61796707,102700.0,102690.0,0.00048376]
[1747312999174,1.52065767,102700.0,102690.0,0.00048376]
[1747312999349,0.88553136,102700.0,102690.0,0.06318376]
[1747312999761,0.54553136,102700.0,102690.0,0.06318376]
[1747313000940,0.29905136,102700.0,102690.0,0.06318376]
[1747313002046,0.29605136,102700.0,102690.0,0.06318376]
[1747313002264,0.29405136,102700.0,102690.0,0.06318376]
[1747313002451,0.29605136,102700.0,102690.0,0.06318376]
[1747313002717,0.29605136,102700.0,102690.0,0.09092787]
[1747313003179,0.1013094,102700.0,102690.0,0.2856888]
[1747313003397,0.01373643,102700.0,102690.0,0.32944264]
[1747313003600,0.02347314,102700.0,102690.0,0.32944264]
[1747313003802,0.02347295,102700.0,102690.0,0.32944264]
[1747313004020,0.22795172,102700.0,102690.0,0.32944264]
[1747313004446,0.23768872,102700.0,102690.0,0.32944283]
[1747313004650,0.23768872,102700.0,102690.0,0.3391803]
[1747313004950,0.21821577,102700.0,102690.0,0.06318376]
[1747313005378,0.21821577,102700.0,102690.0,0.0729218]
[1747313005668,0.21821577,102700.0,102690.0,0.27742068]
[1747313006919,0.21821577,102700.0,102690.0,0.26768273]
[1747313007262,0.21821577,102700.0,102690.0,0.1123515]
[1747313007410,0.21821577,102700.0,102690.0,0.12208954]
[1747313007613,0.21821577,102700.0,102690.0,0.1123515]
[1747313007828,0.31552517,102700.0,102690.0,0.06318376]
[1747313014060,0.59341148,102700.0,102690.0,0.06318376]
[1747313014261,0.59341148,102700.0,102690.0,0.00048376]
[1747313017055,0.65441148,102700.0,102690.0,0.00048376]
[1747313017682,0.69341148,102700.0,102690.0,0.00048376]
[1747313017854,0.41552517,102700.0,102690.0,0.06548376]
[1747313018268,0.41552517,102700.0,102690.0,0.09248357]
[1747313018472,0.2013094,102700.0,102690.0,0.2872445]
[1747313018668,0.33768862,102700.0,102690.0,0.29698245]
[1747313018882,0.33768862,102700.0,102690.0,0.3067203]
[1747313019024,0.33768862,102700.0,102690.0,0.31645806]
[1747313019025,0.34742571,102700.0,102690.0,0.31645806]
[1747313019218,0.34742571,102700.0,102690.0,0.3067203]
[1747313019530,0.33768938,102700.0,102690.0,0.10222161]
[1747313019731,0.33768938,102700.0,102690.0,0.09248357]
[1747313021881,0.30847829,102700.0,102690.0,0.29698245]
[1747313022063,0.104,102700.0,102690.0,0.32619553]
[1747313022264,0.104,102700.0,102690.0,0.35047376]
[1747313022465,0.31821472,102700.0,102690.0,0.35047376]
[1747313022664,0.31821472,102700.0,102690.0,0.34073638]
[1747313023081,0.3064782,102700.0,102690.0,0.35047376]
[1747313023311,0.31621472,102700.0,102690.0,0.34073638]
[1747313023504,0.31621472,102700.0,102690.0,0.35147376]
[1747313023790,0.3064782,102700.0,102690.0,0.35147376]
[1747313024015,0.11173624,102700.0,102690.0,0.35147376]
[1747313024260,0.31621472,102700.0,102690.0,0.34173638]
[1747313024630,0.31421472,102700.0,102690.0,0.34173638]
[1747313024833,0.11947267,102700.0,102690.0,0.35147376]
[1747313025036,0.32395134,102700.0,102690.0,0.33299891]
[1747313025247,0.10973624,102700.0,102690.0,0.35247395]
[1747313025472,0.1,102700.0,102690.0,0.35247395]
[1747313026116,0.1,102700.0,102690.0,0.44978335]
[1747313026843,0.1,102700.0,102690.0,0.78978335]
[1747313028854,0.1,102700.0,102690.0,0.80446359]
[1747313031443,0.1,102700.0,102690.0,0.80346359]
[1747313031644,0.1,102700.0,102690.0,0.80246359]
[1747313031881,0.1,102700.0,102690.0,1.29934359]
[1747313035488,0.1,102700.0,102690.0,1.30934359]
[1747313036613,0.1,102700.0,102690.0,1.31934359]
[1747313037373,0.1,102700.0,102690.0,1.34623019]
[1747313038155,0.1,102700.0,102690.0,1.31934359]
[1747313040708,0.1,102700.0,102690.0,1.34610458]
[1747313041092,0.07791575,102730.0,102720.0,0.30194934]
[1747313041291,0.19462826,102760.0,102750.0,0.22863448]
[1747313041494,0.20435891,102760.0,102750.0,0.23836684]
[1747313041695,0.19462826,102760.0,102750.0,0.25883505]
[1747313041924,0.20435891,102760.0,102750.0,0.29856693]
[1747313042136,0.21408984,102760.0,102750.0,0.25883514]
[1747313042307,0.23355209,102760.0,102750.0,0.06411423]
[1747313042532,0.22382096,102760.0,102750.0,0.06459799]
[1747313042710,0.23355237,102760.0,102750.0,0.06459799]
[1747313043140,0.27549079,102760.0,102750.0,0.05005714]
[1747313043363,0.5533771,102760.0,102750.0,0.00048376]
[1747313043775,0.6506865,102760.0,102750.0,0.00048376]
[1747313044209,0.6516865,102760.0,102750.0,0.00048376]
[1747313044487,0.9916865,102760.0,102750.0,0.00048376]